[Event "Titled Tuesday Blitz June 21 Late 2022"]
[White "Mikhailovsky, Vladimir"]
[Black "Remolar Gallen, Jose"]
[WhiteFideId "34105414"]
[BlackFideId "2215187"]
[WhiteElo "2751"]
[BlackElo "2438"]
[Result "1-0"]
[Round "01"]
[TimeControl "180+1"]
[Date "2022.06.22"]
[WhiteClock "0:00:22"]
[BlackClock "0:00:28"]

1. e4 {[%clk 0:03:00]}  c5 {[%clk 0:02:58]} 2. Nf3 {[%clk 0:03:00]}  d6 {[%clk 0:02:58]} 3. d4 {[%clk 0:03:01]}  cxd4 {[%clk 0:02:59]} 4. Qxd4 {[%clk 0:03:02]}  Nc6 {[%clk 0:02:57]} 5. Bb5 {[%clk 0:03:02]}  a6 {[%clk 0:02:55]} 6. Bxc6+ {[%clk 0:03:00]}  bxc6 {[%clk 0:02:55]} 7. c4 {[%clk 0:02:59]}  e5 {[%clk 0:02:55]} 8. Qd3 {[%clk 0:03:00]}  Nf6 {[%clk 0:02:56]} 9. Nc3 {[%clk 0:03:00]}  Be7 {[%clk 0:02:55]} 10. Bg5 {[%clk 0:03:00]}  h6 {[%clk 0:02:53]} 11. Bxf6 {[%clk 0:03:00]}  Bxf6 {[%clk 0:02:54]} 12. O-O {[%clk 0:03:00]}  Be6 {[%clk 0:02:53]} 13. b3 {[%clk 0:02:59]}  O-O {[%clk 0:02:52]} 14. Rad1 {[%clk 0:03:00]}  Be7 {[%clk 0:02:51]} 15. c5 {[%clk 0:02:59]}  dxc5 {[%clk 0:02:46]} 16. Nxe5 {[%clk 0:02:59]}  Qc7 {[%clk 0:02:43]} 17. Nc4 {[%clk 0:02:57]}  Rad8 {[%clk 0:02:40]} 18. Qe2 {[%clk 0:02:57]}  Rd4 {[%clk 0:02:39]} 19. Ne3 {[%clk 0:02:53]}  Rfd8 {[%clk 0:02:35]} 20. Qxa6 {[%clk 0:02:41]}  Bd6 {[%clk 0:02:22]} 21. g3 {[%clk 0:02:35]}  Bh3 {[%clk 0:02:21]} 22. Rfe1 {[%clk 0:02:35]}  Be5 {[%clk 0:01:59]} 23. Qe2 {[%clk 0:02:01]}  g6 {[%clk 0:01:52]} 24. Nc4 {[%clk 0:01:51]}  Rxd1 {[%clk 0:01:49]} 25. Nxd1 {[%clk 0:01:52]}  Bd4 {[%clk 0:01:47]} 26. Nde3 {[%clk 0:01:50]}  Re8 {[%clk 0:01:40]} 27. Nc2 {[%clk 0:01:20]}  Bc3 {[%clk 0:01:39]} 28. Rd1 {[%clk 0:01:19]}  Qe7 {[%clk 0:01:40]} 29. Qe3 {[%clk 0:01:11]}  Qxe4 {[%clk 0:01:22]} 30. Qxe4 {[%clk 0:01:12]}  Rxe4 {[%clk 0:01:22]} 31. Rd3 {[%clk 0:00:59]}  Bf6 {[%clk 0:01:17]} 32. f3 {[%clk 0:00:55]}  Re2 {[%clk 0:01:15]} 33. Rd2 {[%clk 0:00:55]}  Rxd2 {[%clk 0:01:05]} 34. Nxd2 {[%clk 0:00:56]}  Bf5 {[%clk 0:01:05]} 35. Ne4 {[%clk 0:00:50]}  Be7 {[%clk 0:00:46]} 36. Kf2 {[%clk 0:00:50]}  Bc8 {[%clk 0:00:42]} 37. Ne3 {[%clk 0:00:48]}  f5 {[%clk 0:00:41]} 38. Nc3 {[%clk 0:00:46]}  Bf6 {[%clk 0:00:41]} 39. Na4 {[%clk 0:00:47]}  Bd4 {[%clk 0:00:41]} 40. Ke2 {[%clk 0:00:47]}  Ba6+ {[%clk 0:00:41]} 41. Nc4 {[%clk 0:00:46]}  Kf7 {[%clk 0:00:39]} 42. Kd3 {[%clk 0:00:47]}  Ke6 {[%clk 0:00:40]} 43. Nc3 {[%clk 0:00:26]}  h5 {[%clk 0:00:31]} 44. h4 {[%clk 0:00:24]}  Bf2 {[%clk 0:00:30]} 45. Ne2 {[%clk 0:00:24]}  Kd5 {[%clk 0:00:28]} 46. Nf4# {[%clk 0:00:22]} 1-0


[Site "https://www.chess.com"]

[Event "Titled Tuesday Blitz June 21 Late 2022"]
[White "Muradli, Mahammad"]
[Black "Ozates, Tuna"]
[WhiteFideId "13409301"]
[BlackFideId "6354521"]
[WhiteElo "2611"]
[BlackElo "1887"]
[Result "1-0"]
[Round "01"]
[TimeControl "180+1"]
[Date "2022.06.21"]
[WhiteClock "0:00:28"]
[BlackClock "0:00:06"]

1. Nf3 {[%clk 0:02:58]}  c6 {[%clk 0:02:56]} 2. b3 {[%clk 0:02:58]}  d6 {[%clk 0:02:55]} 3. Bb2 {[%clk 0:02:59]}  e5 {[%clk 0:02:56]} 4. e4 {[%clk 0:03:00]}  Nf6 {[%clk 0:02:56]} 5. d3 {[%clk 0:02:58]}  g6 {[%clk 0:02:55]} 6. Nbd2 {[%clk 0:02:58]}  Bg7 {[%clk 0:02:56]} 7. g3 {[%clk 0:02:59]}  O-O {[%clk 0:02:56]} 8. Bg2 {[%clk 0:03:00]}  Nh5 {[%clk 0:02:57]} 9. d4 {[%clk 0:02:57]}  exd4 {[%clk 0:02:54]} 10. Bxd4 {[%clk 0:02:58]}  Re8 {[%clk 0:02:46]} 11. Bxg7 {[%clk 0:02:57]}  Nxg7 {[%clk 0:02:47]} 12. O-O {[%clk 0:02:58]}  Bg4 {[%clk 0:02:42]} 13. Re1 {[%clk 0:02:55]}  Nd7 {[%clk 0:02:42]} 14. Nc4 {[%clk 0:02:54]}  Bxf3 {[%clk 0:02:39]} 15. Bxf3 {[%clk 0:02:55]}  Ne5 {[%clk 0:02:36]} 16. Be2 {[%clk 0:02:45]}  Nxc4 {[%clk 0:02:26]} 17. Bxc4 {[%clk 0:02:46]}  Ne6 {[%clk 0:02:25]} 18. h4 {[%clk 0:02:40]}  Qf6 {[%clk 0:02:20]} 19. Qxd6 {[%clk 0:02:32]}  Rad8 {[%clk 0:02:20]} 20. e5 {[%clk 0:02:17]}  Qf3 {[%clk 0:01:58]} 21. Qb4 {[%clk 0:02:12]}  c5 {[%clk 0:01:50]} 22. Qa5 {[%clk 0:02:06]}  b6 {[%clk 0:01:45]} 23. Qxa7 {[%clk 0:02:00]}  Rd2 {[%clk 0:01:45]} 24. Rf1 {[%clk 0:01:53]}  Nd4 {[%clk 0:01:37]} 25. Rae1 {[%clk 0:01:31]}  b5 {[%clk 0:01:27]} 26. Re3 {[%clk 0:01:26]}  Qf5 {[%clk 0:01:21]} 27. Bd3 {[%clk 0:01:26]}  Qh3 {[%clk 0:00:43]} 28. Qxc5 {[%clk 0:01:15]}  Ne6 {[%clk 0:00:33]} 29. Qb4 {[%clk 0:01:10]}  Rxd3 {[%clk 0:00:25]} 30. Rxd3 {[%clk 0:01:11]}  Rc8 {[%clk 0:00:19]} 31. c3 {[%clk 0:01:02]}  Rc5 {[%clk 0:00:18]} 32. Qe4 {[%clk 0:01:00]}  Kg7 {[%clk 0:00:16]} 33. Rfd1 {[%clk 0:00:59]}  g5 {[%clk 0:00:14]} 34. hxg5 {[%clk 0:00:37]}  Nxg5 {[%clk 0:00:14]} 35. Qd4 {[%clk 0:00:33]}  Ne6 {[%clk 0:00:08]} 36. Qh4 {[%clk 0:00:32]}  Qf5 {[%clk 0:00:09]} 37. Qf6+ {[%clk 0:00:31]}  Qxf6 {[%clk 0:00:09]} 38. exf6+ {[%clk 0:00:32]}  Kxf6 {[%clk 0:00:10]} 39. c4 {[%clk 0:00:31]}  bxc4 {[%clk 0:00:10]} 40. bxc4 {[%clk 0:00:27]}  Rxc4 {[%clk 0:00:10]} 41. a3 {[%clk 0:00:27]}  h5 {[%clk 0:00:08]} 42. Ra1 {[%clk 0:00:27]}  h4 {[%clk 0:00:08]} 43. gxh4 {[%clk 0:00:28]}  Rxh4 {[%clk 0:00:08]} 44. a4 {[%clk 0:00:28]}  Nf4 {[%clk 0:00:09]} 45. Re3 {[%clk 0:00:28]}  Rg4+ {[%clk 0:00:06]} 46. Kh2 {[%clk 0:00:28]}  Rh4+ {[%clk 0:00:05]} 47. Kg3 {[%clk 0:00:28]}  Kg5 {[%clk 0:00:06]} 48. Re5+ {[%clk 0:00:27]}  f5 {[%clk 0:00:06]} 49. Rxf5+ {[%clk 0:00:28]} 1-0


[Site "https://www.chess.com"]

[Event "Titled Tuesday Blitz June 21 Late 2022"]
[White "Murzin, Volodar"]
[Black "Vivas Zamora, Fabian Ernesto"]
[WhiteFideId "44155573"]
[BlackFideId "3902480"]
[WhiteElo "2831"]
[BlackElo "2468"]
[Result "1-0"]
[Round "01"]
[TimeControl "180+1"]
[Date "2022.06.22"]
[WhiteClock "0:01:11"]
[BlackClock "0:01:25"]

1. e4 {[%clk 0:02:56]}  e5 {[%clk 0:02:58]} 2. Nf3 {[%clk 0:02:55]}  Nc6 {[%clk 0:02:58]} 3. Bb5 {[%clk 0:02:54]}  f5 {[%clk 0:02:57]} 4. Nc3 {[%clk 0:02:51]}  fxe4 {[%clk 0:02:57]} 5. Nxe4 {[%clk 0:02:50]}  Nf6 {[%clk 0:02:58]} 6. Qe2 {[%clk 0:02:44]}  d5 {[%clk 0:02:57]} 7. Nxf6+ {[%clk 0:02:43]}  gxf6 {[%clk 0:02:58]} 8. d4 {[%clk 0:02:42]}  Bg7 {[%clk 0:02:58]} 9. dxe5 {[%clk 0:02:39]}  O-O {[%clk 0:02:58]} 10. e6 {[%clk 0:02:29]}  Ne5 {[%clk 0:02:58]} 11. O-O {[%clk 0:02:15]}  c5 {[%clk 0:02:39]} 12. Bf4 {[%clk 0:01:59]}  Nxf3+ {[%clk 0:02:00]} 13. Qxf3 {[%clk 0:01:53]}  Bxe6 {[%clk 0:02:00]} 14. Rfe1 {[%clk 0:01:45]}  Qb6 {[%clk 0:01:56]} 15. Bd3 {[%clk 0:01:32]}  c4 {[%clk 0:01:53]} 16. Bf5 {[%clk 0:01:24]}  Bxf5 {[%clk 0:01:27]} 17. Qxd5+ {[%clk 0:01:23]}  Kh8 {[%clk 0:01:28]} 18. Qxf5 {[%clk 0:01:23]}  Qxb2 {[%clk 0:01:29]} 19. Rab1 {[%clk 0:01:19]}  Qc3 {[%clk 0:01:28]} 20. Re3 {[%clk 0:01:12]}  Qd4 {[%clk 0:01:25]} 21. Rh3 {[%clk 0:01:11]} 1-0


[Site "https://www.chess.com"]

[Event "Titled Tuesday Blitz June 21 Late 2022"]
[White "Nathan, Nitish"]
[Black "Romanchuk, Viktor"]
[WhiteFideId "30927870"]
[BlackFideId "14109271"]
[WhiteElo "2261"]
[BlackElo "2242"]
[Result "0-1"]
[Round "01"]
[TimeControl "180+1"]
[Date "2022.06.22"]
[WhiteClock "0:00:20"]
[BlackClock "0:00:58"]

1. d4 {[%clk 0:02:58]}  d5 {[%clk 0:02:59]} 2. Bf4 {[%clk 0:02:58]}  Nf6 {[%clk 0:02:58]} 3. e3 {[%clk 0:02:58]}  c5 {[%clk 0:02:58]} 4. c3 {[%clk 0:02:54]}  Nc6 {[%clk 0:02:58]} 5. Nd2 {[%clk 0:02:54]}  cxd4 {[%clk 0:02:57]} 6. exd4 {[%clk 0:02:54]}  Bf5 {[%clk 0:02:57]} 7. Qb3 {[%clk 0:02:49]}  Qc8 {[%clk 0:02:56]} 8. Ngf3 {[%clk 0:02:49]}  e6 {[%clk 0:02:56]} 9. Be2 {[%clk 0:02:46]}  Be7 {[%clk 0:02:55]} 10. O-O {[%clk 0:02:46]}  O-O {[%clk 0:02:55]} 11. Ne5 {[%clk 0:02:45]}  Nxe5 {[%clk 0:02:54]} 12. Bxe5 {[%clk 0:02:45]}  Nd7 {[%clk 0:02:53]} 13. Bg3 {[%clk 0:02:44]}  Bd8 {[%clk 0:02:54]} 14. Nf3 {[%clk 0:02:43]}  Bc7 {[%clk 0:02:54]} 15. Bb5 {[%clk 0:02:42]}  Nf6 {[%clk 0:02:45]} 16. Ne5 {[%clk 0:02:34]}  Ne4 {[%clk 0:02:41]} 17. Qd1 {[%clk 0:02:31]}  Nxg3 {[%clk 0:02:34]} 18. hxg3 {[%clk 0:02:30]}  Bxe5 {[%clk 0:02:33]} 19. dxe5 {[%clk 0:02:29]}  Qc7 {[%clk 0:02:33]} 20. Qd4 {[%clk 0:02:26]}  Rfc8 {[%clk 0:02:27]} 21. Rfe1 {[%clk 0:02:25]}  Qc5 {[%clk 0:02:27]} 22. Qxc5 {[%clk 0:02:03]}  Rxc5 {[%clk 0:02:27]} 23. Be2 {[%clk 0:02:02]}  Kf8 {[%clk 0:02:22]} 24. g4 {[%clk 0:01:59]}  Bg6 {[%clk 0:02:21]} 25. f4 {[%clk 0:01:56]}  h6 {[%clk 0:02:17]} 26. Rad1 {[%clk 0:01:53]}  Rac8 {[%clk 0:02:16]} 27. Bd3 {[%clk 0:01:53]}  Bxd3 {[%clk 0:02:15]} 28. Rxd3 {[%clk 0:01:52]}  Rc4 {[%clk 0:02:16]} 29. g3 {[%clk 0:01:52]}  Ke7 {[%clk 0:02:15]} 30. Kg2 {[%clk 0:01:50]}  b5 {[%clk 0:02:14]} 31. a3 {[%clk 0:01:45]}  a5 {[%clk 0:02:13]} 32. f5 {[%clk 0:01:36]}  b4 {[%clk 0:02:11]} 33. axb4 {[%clk 0:01:34]}  axb4 {[%clk 0:02:11]} 34. Ra1 {[%clk 0:01:33]}  bxc3 {[%clk 0:02:06]} 35. bxc3 {[%clk 0:01:31]}  Rxc3 {[%clk 0:02:05]} 36. Rxc3 {[%clk 0:01:28]}  Rxc3 {[%clk 0:02:05]} 37. Ra7+ {[%clk 0:01:26]}  Kf8 {[%clk 0:02:04]} 38. Rd7 {[%clk 0:01:16]}  Re3 {[%clk 0:01:59]} 39. f6 {[%clk 0:01:15]}  Kg8 {[%clk 0:01:54]} 40. Rd8+ {[%clk 0:01:04]}  Kh7 {[%clk 0:01:53]} 41. Rf8 {[%clk 0:01:01]}  Kg6 {[%clk 0:01:47]} 42. Rg8 {[%clk 0:00:58]}  Rxe5 {[%clk 0:01:47]} 43. fxg7 {[%clk 0:00:51]}  Kh7 {[%clk 0:01:45]} 44. Rf8 {[%clk 0:00:49]}  Kxg7 {[%clk 0:01:44]} 45. Ra8 {[%clk 0:00:49]}  Re3 {[%clk 0:01:34]} 46. Rd8 {[%clk 0:00:47]}  Kf6 {[%clk 0:01:31]} 47. Rh8 {[%clk 0:00:45]}  Kg7 {[%clk 0:01:31]} 48. Rd8 {[%clk 0:00:45]}  Re5 {[%clk 0:01:25]} 49. Kf3 {[%clk 0:00:42]}  h5 {[%clk 0:01:25]} 50. gxh5 {[%clk 0:00:39]}  Rxh5 {[%clk 0:01:24]} 51. Kf4 {[%clk 0:00:38]}  Rf5+ {[%clk 0:01:23]} 52. Ke3 {[%clk 0:00:36]}  Kf6 {[%clk 0:01:23]} 53. Rg8 {[%clk 0:00:35]}  Rg5 {[%clk 0:01:21]} 54. Rh8 {[%clk 0:00:33]}  Rxg3+ {[%clk 0:01:21]} 55. Kf4 {[%clk 0:00:32]}  Rg6 {[%clk 0:01:18]} 56. Rh2 {[%clk 0:00:31]}  e5+ {[%clk 0:01:18]} 57. Ke3 {[%clk 0:00:30]}  Rg3+ {[%clk 0:01:16]} 58. Kf2 {[%clk 0:00:30]}  Ra3 {[%clk 0:01:16]} 59. Rh6+ {[%clk 0:00:30]}  Kf5 {[%clk 0:01:14]} 60. Rb6 {[%clk 0:00:31]}  f6 {[%clk 0:01:09]} 61. Rb4 {[%clk 0:00:29]}  d4 {[%clk 0:01:09]} 62. Rb5 {[%clk 0:00:30]}  Ke4 {[%clk 0:01:08]} 63. Ke2 {[%clk 0:00:31]}  Ra2+ {[%clk 0:01:07]} 64. Ke1 {[%clk 0:00:31]}  f5 {[%clk 0:01:07]} 65. Rb3 {[%clk 0:00:31]}  f4 {[%clk 0:01:06]} 66. Rh3 {[%clk 0:00:30]}  f3 {[%clk 0:01:05]} 67. Kd1 {[%clk 0:00:22]}  f2 {[%clk 0:01:02]} 68. Rh1 {[%clk 0:00:19]}  Ra1+ {[%clk 0:01:00]} 69. Ke2 {[%clk 0:00:18]}  Rxh1 {[%clk 0:01:01]} 70. Kxf2 {[%clk 0:00:19]}  Rh3 {[%clk 0:00:59]} 71. Ke2 {[%clk 0:00:20]}  Re3+ {[%clk 0:00:59]} 72. Kd2 {[%clk 0:00:19]}  d3 {[%clk 0:00:57]} 73. Kd1 {[%clk 0:00:20]}  Re2 {[%clk 0:00:57]} 74. Kc1 {[%clk 0:00:20]}  Kd4 {[%clk 0:00:57]} 75. Kd1 {[%clk 0:00:21]}  e4 {[%clk 0:00:58]} 76. Kc1 {[%clk 0:00:20]}  e3 {[%clk 0:00:59]} 77. Kd1 {[%clk 0:00:21]}  Kc3 {[%clk 0:00:59]} 78. Kc1 {[%clk 0:00:20]}  Re1# {[%clk 0:00:58]} 0-1


[Site "https://www.chess.com"]

[Event "Titled Tuesday Blitz June 21 Late 2022"]
[White "Nazari, Arad"]
[Black "Onslow, Alfie"]
[WhiteFideId "12577324"]
[BlackFideId "436976"]
[WhiteElo "2129"]
[BlackElo "1885"]
[Result "1-0"]
[Round "01"]
[TimeControl "180+1"]
[Date "2022.06.22"]
[WhiteClock "0:01:36"]
[BlackClock "0:00:12"]

1. e4 {[%clk 0:02:59]}  c5 {[%clk 0:02:57]} 2. Nf3 {[%clk 0:03:00]}  Nc6 {[%clk 0:02:57]} 3. Bb5 {[%clk 0:03:00]}  g6 {[%clk 0:02:57]} 4. Bxc6 {[%clk 0:03:00]}  dxc6 {[%clk 0:02:58]} 5. O-O {[%clk 0:02:59]}  Bg7 {[%clk 0:02:58]} 6. h3 {[%clk 0:03:00]}  e5 {[%clk 0:02:58]} 7. d3 {[%clk 0:03:00]}  Ne7 {[%clk 0:02:59]} 8. Be3 {[%clk 0:03:00]}  O-O {[%clk 0:02:59]} 9. Bxc5 {[%clk 0:03:00]}  b6 {[%clk 0:02:53]} 10. Be3 {[%clk 0:03:00]}  c5 {[%clk 0:02:52]} 11. Qd2 {[%clk 0:02:56]}  Nc6 {[%clk 0:02:50]} 12. Bh6 {[%clk 0:02:55]}  Nd4 {[%clk 0:02:50]} 13. Nxd4 {[%clk 0:02:54]}  cxd4 {[%clk 0:02:51]} 14. Bxg7 {[%clk 0:02:53]}  Kxg7 {[%clk 0:02:52]} 15. c4 {[%clk 0:02:53]}  dxc3 {[%clk 0:02:51]} 16. Nxc3 {[%clk 0:02:53]}  Be6 {[%clk 0:02:46]} 17. Rfd1 {[%clk 0:02:53]}  Qd4 {[%clk 0:02:42]} 18. Ne2 {[%clk 0:02:52]}  Qd7 {[%clk 0:02:26]} 19. d4 {[%clk 0:02:51]}  exd4 {[%clk 0:02:23]} 20. Qxd4+ {[%clk 0:02:52]}  Qxd4 {[%clk 0:02:22]} 21. Nxd4 {[%clk 0:02:53]}  Bc4 {[%clk 0:02:18]} 22. b3 {[%clk 0:02:52]}  Ba6 {[%clk 0:02:18]} 23. Rac1 {[%clk 0:02:52]}  Rfe8 {[%clk 0:02:12]} 24. f3 {[%clk 0:02:51]}  Rac8 {[%clk 0:02:12]} 25. Kf2 {[%clk 0:02:50]}  h5 {[%clk 0:02:07]} 26. h4 {[%clk 0:02:47]}  Kf6 {[%clk 0:02:03]} 27. Nc6 {[%clk 0:02:41]}  Rc7 {[%clk 0:01:55]} 28. Nb4 {[%clk 0:02:40]}  Rxc1 {[%clk 0:01:50]} 29. Rxc1 {[%clk 0:02:41]}  Bb5 {[%clk 0:01:49]} 30. Rc7 {[%clk 0:02:40]}  Rd8 {[%clk 0:01:18]} 31. Nd5+ {[%clk 0:02:40]}  Kg7 {[%clk 0:01:18]} 32. Ke3 {[%clk 0:02:35]}  a5 {[%clk 0:01:14]} 33. Kd4 {[%clk 0:02:24]}  a4 {[%clk 0:01:11]} 34. Rb7 {[%clk 0:02:22]}  axb3 {[%clk 0:01:05]} 35. axb3 {[%clk 0:02:23]}  Bf1 {[%clk 0:01:04]} 36. g3 {[%clk 0:02:23]}  b5 {[%clk 0:01:04]} 37. b4 {[%clk 0:02:20]}  Bc4 {[%clk 0:01:03]} 38. f4 {[%clk 0:02:16]}  Kf8 {[%clk 0:01:01]} 39. Kc5 {[%clk 0:02:16]}  Re8 {[%clk 0:00:59]} 40. e5 {[%clk 0:02:08]}  Rc8+ {[%clk 0:00:59]} 41. Rc7 {[%clk 0:02:07]}  Rd8 {[%clk 0:00:52]} 42. Nb6 {[%clk 0:02:06]}  Bf1 {[%clk 0:00:44]} 43. Nd7+ {[%clk 0:02:04]}  Kg7 {[%clk 0:00:39]} 44. e6 {[%clk 0:01:57]}  fxe6 {[%clk 0:00:38]} 45. Ne5+ {[%clk 0:01:57]}  Kg8 {[%clk 0:00:34]} 46. Nxg6 {[%clk 0:01:56]}  Rd5+ {[%clk 0:00:31]} 47. Kb6 {[%clk 0:01:56]}  Rd4 {[%clk 0:00:22]} 48. Ka5 {[%clk 0:01:49]}  Rd3 {[%clk 0:00:18]} 49. Rc1 {[%clk 0:01:49]}  Be2 {[%clk 0:00:16]} 50. Rg1 {[%clk 0:01:49]}  Ra3+ {[%clk 0:00:15]} 51. Kb6 {[%clk 0:01:50]}  Rb3 {[%clk 0:00:15]} 52. Ne7+ {[%clk 0:01:50]}  Kf7 {[%clk 0:00:15]} 53. Nc6 {[%clk 0:01:51]}  Bc4 {[%clk 0:00:12]} 54. Ne5+ {[%clk 0:01:44]}  Kf6 {[%clk 0:00:11]} 55. Nxc4 {[%clk 0:01:45]}  bxc4 {[%clk 0:00:12]} 56. Kc5 {[%clk 0:01:46]}  c3 {[%clk 0:00:12]} 57. Kc4 {[%clk 0:01:46]}  Ra3 {[%clk 0:00:11]} 58. Rc1 {[%clk 0:01:43]}  c2 {[%clk 0:00:10]} 59. Rxc2 {[%clk 0:01:40]}  Rxg3 {[%clk 0:00:10]} 60. b5 {[%clk 0:01:41]}  Rg4 {[%clk 0:00:11]} 61. b6 {[%clk 0:01:40]}  Rxf4+ {[%clk 0:00:11]} 62. Kc5 {[%clk 0:01:40]}  Ke7 {[%clk 0:00:09]} 63. b7 {[%clk 0:01:40]}  Rf8 {[%clk 0:00:09]} 64. Kb6 {[%clk 0:01:40]}  Kd7 {[%clk 0:00:08]} 65. Ka7 {[%clk 0:01:36]}  Rf1 {[%clk 0:00:06]} 66. b8=Q {[%clk 0:01:34]}  Ra1+ {[%clk 0:00:07]} 67. Kb7 {[%clk 0:01:35]}  Rb1+ {[%clk 0:00:06]} 68. Ka8 {[%clk 0:01:35]}  Ra1+ {[%clk 0:00:06]} 69. Qa7+ {[%clk 0:01:35]}  Rxa7+ {[%clk 0:00:07]} 70. Kxa7 {[%clk 0:01:36]}  Kd6 {[%clk 0:00:07]} 71. Kb6 {[%clk 0:01:37]}  Kd5 {[%clk 0:00:08]} 72. Rc5+ {[%clk 0:01:35]}  Kd4 {[%clk 0:00:08]} 73. Rxh5 {[%clk 0:01:36]}  e5 {[%clk 0:00:09]} 74. Rh8 {[%clk 0:01:36]}  e4 {[%clk 0:00:10]} 75. Re8 {[%clk 0:01:36]}  e3 {[%clk 0:00:10]} 76. h5 {[%clk 0:01:37]}  e2 {[%clk 0:00:11]} 77. Rxe2 {[%clk 0:01:36]}  Kd3 {[%clk 0:00:12]} 78. Re8 {[%clk 0:01:36]} 1-0


[Site "https://www.chess.com"]

[Event "Titled Tuesday Blitz June 21 Late 2022"]
[White "Needleman, Alejandro"]
[Black "Hnydiuk, Aleksander"]
[WhiteFideId "100730"]
[BlackFideId "1109057"]
[WhiteElo "2312"]
[BlackElo "2374"]
[Result "0-1"]
[Round "01"]
[TimeControl "180+1"]
[Date "2022.06.22"]
[WhiteClock "0:01:50"]
[BlackClock "0:01:20"]

1. e4 {[%clk 0:03:00]}  c5 {[%clk 0:02:59]} 2. Nf3 {[%clk 0:03:00]}  e6 {[%clk 0:02:59]} 3. b4 {[%clk 0:02:58]}  cxb4 {[%clk 0:02:58]} 4. d4 {[%clk 0:02:59]}  Nf6 {[%clk 0:02:54]} 5. Bd3 {[%clk 0:02:58]}  d5 {[%clk 0:02:54]} 6. e5 {[%clk 0:02:58]}  Ne4 {[%clk 0:02:55]} 7. O-O {[%clk 0:02:59]}  Be7 {[%clk 0:02:52]} 8. Qe1 {[%clk 0:02:59]}  O-O {[%clk 0:02:50]} 9. Bxe4 {[%clk 0:02:59]}  dxe4 {[%clk 0:02:51]} 10. Qxe4 {[%clk 0:02:59]}  Qd5 {[%clk 0:02:47]} 11. Nbd2 {[%clk 0:02:45]}  b6 {[%clk 0:02:45]} 12. a3 {[%clk 0:02:42]}  Qxe4 {[%clk 0:02:27]} 13. Nxe4 {[%clk 0:02:41]}  Bb7 {[%clk 0:02:28]} 14. Re1 {[%clk 0:02:33]}  Nc6 {[%clk 0:02:21]} 15. axb4 {[%clk 0:02:33]}  Nxb4 {[%clk 0:02:20]} 16. Ba3 {[%clk 0:02:33]}  Rfc8 {[%clk 0:02:11]} 17. c3 {[%clk 0:02:16]}  Nc2 {[%clk 0:02:01]} 18. Bxe7 {[%clk 0:02:13]}  Bxe4 {[%clk 0:02:02]} 19. Rxe4 {[%clk 0:02:04]}  Nxa1 {[%clk 0:02:02]} 20. Rg4 {[%clk 0:01:53]}  Rxc3 {[%clk 0:01:52]} 21. h4 {[%clk 0:01:54]}  Nb3 {[%clk 0:01:33]} 22. Ng5 {[%clk 0:01:52]}  Re8 {[%clk 0:01:22]} 23. Ne4 {[%clk 0:01:49]}  Rc1+ {[%clk 0:01:21]} 24. Kh2 {[%clk 0:01:50]}  Rxe7 {[%clk 0:01:20]} 0-1


[Site "https://www.chess.com"]